bitfinex/quotes_ETHUSD_20250623
["timestamp","ask_amount","ask_price","bid_price","bid_amount"]
[1750687204778,2.797,2304.7,2303.3,1.5739]
[1750687205087,10.452,2304.8,2303.4,4.34140835]
[1750687205293,10.452,2304.8,2303.5,0.59153084]
[1750687205477,2.796,2304.7,2303.6,0.5]
[1750687205679,2.796,2304.7,2303.5,0.59153084]
[1750687205878,4.33542886,2306.6,2303.5,0.59153084]
[1750687205879,9.99381531,2308.4,2306.0,1.6118]
[1750687206113,0.2213033,2309.4,2306.4,2.18078599]
[1750687206314,1.304493,2307.8,2307.7,4.33331888]
[1750687206497,0.17698566,2309.7,2307.8,4.33313112]
[1750687206720,0.55096169,2310.3,2308.6,1.2122814]
[1750687206874,0.03096169,2310.3,2310.0,3.63684421]
[1750687207191,0.03096169,2310.3,2310.1,2.88512091]
[1750687207392,0.03096169,2310.3,2310.2,13.3931993]
[1750687207713,2.999,2310.8,2310.2,10.96863649]
[1750687207915,0.31835062,2311.5,2310.2,10.96863649]
[1750687207916,0.1973069,2311.8,2311.7,4.32582082]
[1750687208118,0.1973069,2311.8,2311.7,0.96863649]
[1750687208327,0.1973069,2311.8,2311.7,1.38281668]
[1750687208476,3.091,2312.8,2311.7,3.3735727]
[1750687208792,10.434,2313.3,2311.9,1.17570285]
[1750687209126,0.2440599,2314.3,2311.9,1.17570285]
[1750687209127,10.434,2314.1,2312.9,0.55]
[1750687209330,3.4310599,2314.3,2312.9,0.55]
[1750687209331,3.187,2314.0,2313.3,1.17570285]
[1750687209535,3.187,2314.0,2312.9,13.32088029]
[1750687209536,3.187,2314.0,2312.9,0.55]
[1750687209838,3.187,2314.0,2312.9,0.91092464]
[1750687210140,0.2440599,2314.3,2313.2,4.32301573]
[1750687210298,0.0300599,2317.1,2315.2,30.0]
[1750687210621,14.16,2317.0,2314.8,1.5563]
[1750687210839,1.5159599,2318.0,2314.8,1.5563]
[1750687210984,14.306,2317.9,2314.8,1.5563]
[1750687211186,14.306,2317.9,2315.1,10.0]
[1750687211383,14.306,2317.9,2314.8,1.5563]
[1750687211580,14.306,2317.9,2314.8,5.876273]
[1750687211837,14.306,2317.9,2315.1,10.0]
[1750687211982,1.5159599,2318.0,2314.8,1.5563]
[1750687211983,1.4659599,2318.0,2314.8,1.5563]
[1750687212183,1.4659599,2318.0,2315.5,1.5304]
[1750687212397,4.058,2318.3,2315.6,10.518]
[1750687212615,4.058,2318.3,2315.7,11.20484]
[1750687212855,4.058,2318.3,2315.7,10.0]
[1750687213002,4.058,2318.3,2315.5,1.5304]
[1750687213392,10.0,2318.2,2315.6,0.3605038]
[1750687213598,4.058,2318.3,2315.6,0.3605038]
[1750687213807,2.64904882,2318.1,2315.6,0.3605038]
[1750687214010,10.0,2317.9,2315.6,0.3605038]
[1750687214222,4.3147397,2317.7,2315.6,1.6583628]
[1750687214384,4.31504849,2317.5,2315.6,1.6583628]
[1750687214585,0.5,2316.8,2313.7,1.5558]
[1750687214789,0.53,2314.8,2311.7,2.06778019]
[1750687215027,10.406,2314.7,2313.9,1.298533]
[1750687215182,10.0,2314.6,2311.7,2.06778019]
[1750687215384,10.0,2314.6,2312.7,1.298903]
[1750687215385,30.0,2314.5,2312.7,1.298903]
[1750687215585,4.32000599,2314.9,2310.3,4.32828413]
[1750687215586,1.552,2316.5,2312.9,4.32353358]
[1750687215784,1.30185,2320.0,2313.5,0.5]
[1750687215785,7.0,2314.5,2313.5,0.5]
[1750687215987,1.552,2315.1,2313.9,0.913864]
[1750687216222,1.552,2315.1,2313.8,0.5]
[1750687216223,1.552,2315.1,2314.1,0.913864]
[1750687216614,1.552,2315.1,2314.2,0.913864]
[1750687216925,1.552,2315.1,2313.7,0.913864]
[1750687217131,1.552,2315.1,2313.3,0.913864]
[1750687217441,1.552,2315.1,2312.7,0.913864]
[1750687217744,1.552,2315.1,2313.1,0.913864]
[1750687218032,1.552,2315.1,2312.7,0.913864]
[1750687218345,1.5841,2314.7,2312.4,0.913864]
[1750687218496,1.5841,2314.7,2312.7,0.913864]
[1750687218695,1.5841,2315.5,2313.6,0.5]
[1750687218992,30.0,2315.2,2312.1,2.0933]
[1750687219213,30.0,2315.2,2311.5,1.299596]
[1750687219214,1.586,2314.7,2311.5,1.299596]
[1750687219511,1.586,2313.3,2310.6,1.5933]
[1750687219710,1.5559,2313.0,2310.7,1.300229]
[1750687219912,1.5559,2313.0,2310.5,0.5]
[1750687220148,1.5559,2313.0,2310.7,0.5]
[1750687220335,1.5559,2313.0,2310.4,0.913864]
[1750687220520,1.5717,2312.8,2311.0,0.5]
[1750687220846,1.5717,2312.8,2311.2,0.913864]
[1750687220847,1.53927,2312.7,2311.2,0.913864]
[1750687221052,1.5717,2312.8,2310.7,0.913864]
[1750687221447,0.36538032,2312.7,2310.8,0.913864]
[1750687221650,1.5979,2312.6,2310.2,0.5]
[1750687221981,24.263,2313.2,2309.8,0.5]
[1750687221982,1.6608,2312.3,2309.8,0.5]
[1750687222251,1.6608,2312.1,2309.8,0.5]
[1750687222412,10.398,2312.0,2310.2,0.913864]
[1750687222609,2.59228,2311.9,2310.1,0.5]
[1750687222864,2.59228,2311.9,2310.2,0.913864]
[1750687223017,2.59228,2311.9,2310.5,0.5]
[1750687223212,10.398,2312.0,2310.3,0.5]
[1750687223435,10.398,2312.0,2309.3,0.2440599]
[1750687223436,10.398,2312.0,2310.9,0.913864]
[1750687223630,10.398,2312.0,2310.6,0.5]
[1750687223861,4.32249304,2313.5,2309.6,4.32974452]
[1750687223862,2.1579452,2315.2,2311.3,0.5]
[1750687224013,1.5879,2313.6,2312.0,0.5]
[1750687224216,0.36538032,2313.5,2311.8,0.5]
[1750687224443,0.36538032,2313.5,2311.5,0.5]
[1750687224643,0.36538032,2313.5,2310.7,10.0]
[1750687224644,0.36538032,2313.5,2311.6,0.5]
[1750687224957,0.36538032,2313.5,2312.1,0.913864]
[1750687225273,0.36538032,2313.5,2312.2,0.5]
[1750687225444,0.36538032,2313.5,2312.6,0.913864]
[1750687225619,0.36538032,2313.5,2312.0,10.0]
[1750687225620,0.36538032,2313.5,2312.8,0.5]
[1750687225820,0.36538032,2313.5,2312.2,0.5]
[1750687226046,0.36538032,2313.5,2312.4,0.913864]
[1750687226257,0.36538032,2313.5,2311.4,1.5957]
[1750687226419,0.36538032,2313.5,2312.5,0.913864]
[1750687226866,0.36538032,2313.5,2312.3,0.913864]
[1750687227081,0.36538032,2313.5,2312.5,0.913864]
[1750687227570,0.36538032,2313.5,2312.7,0.913864]
[1750687227872,0.36538032,2313.5,2312.4,0.5]
[1750687228167,0.55,2313.4,2311.6,0.913864]
[1750687228323,0.36504954,2313.3,2312.0,0.5]
[1750687228521,0.36504954,2313.3,2312.7,0.913864]
[1750687229036,0.36504954,2313.3,2313.2,0.913864]
[1750687229548,0.36504954,2313.3,2312.8,0.913864]
[1750687229860,0.36504954,2313.3,2313.1,0.5]
[1750687230063,0.36504954,2313.3,2313.2,0.913864]
[1750687230448,11.9174,2315.4,2314.0,0.5]
[1750687230760,0.29922997,2315.3,2314.8,0.913864]
[1750687231061,0.29922997,2315.3,2314.5,0.913864]
[1750687231224,0.29922997,2315.3,2314.2,0.913864]
[1750687231430,0.29922997,2315.3,2314.0,0.5]
[1750687231431,0.29922997,2315.3,2314.0,1.413864]
[1750687231624,0.29922997,2315.3,2313.7,10.5]
[1750687231625,1.5316,2315.2,2313.7,10.5]
[1750687231832,1.5316,2315.2,2313.5,1.17570285]
[1750687231833,0.55,2315.1,2313.5,1.17570285]
[1750687232033,0.55,2315.1,2313.6,0.913864]
[1750687232233,0.55,2315.1,2313.1,0.913864]
[1750687232234,0.55,2315.0,2313.1,0.913864]
[1750687232440,1.5949,2314.7,2313.3,0.913864]
[1750687232647,15.4529,2314.7,2313.5,0.913864]
[1750687232847,1.54529,2314.6,2313.7,0.913864]
[1750687233084,1.5949,2314.7,2313.9,0.913864]
[1750687233384,1.5949,2314.7,2314.1,0.913864]
[1750687233548,1.5949,2314.7,2314.0,2.48887435]
[1750687233549,1.5949,2314.7,2314.3,11.17570285]
[1750687233743,1.5949,2314.7,2314.4,0.94009497]
[1750687233939,1.5949,2314.7,2314.5,0.94009497]
[1750687234138,10.393,2314.9,2314.6,0.94009497]
[1750687234366,1.0393,2314.8,2314.2,11.17570285]
[1750687234575,1.0393,2314.8,2314.3,0.95134714]
[1750687234774,1.0393,2314.8,2313.7,1.17570285]
[1750687235078,1.0393,2314.8,2313.8,1.32972106]
[1750687235251,1.0393,2314.8,2313.7,1.17570285]
[1750687235252,2.1545,2314.7,2313.4,1.17570285]
[1750687235434,0.55,2314.5,2313.2,1.17570285]
[1750687235636,0.55,2314.5,2313.1,1.17570285]
[1750687235637,0.55,2314.3,2313.1,1.17570285]
[1750687235835,13.855,2314.4,2313.4,1.17570285]
[1750687236083,13.855,2314.4,2313.5,1.17570285]
[1750687236572,0.55,2314.3,2313.8,1.17570285]
[1750687236876,1.4405,2314.2,2313.7,1.20392347]
[1750687237178,1.5331,2314.0,2313.4,1.56816253]
[1750687238261,0.55,2313.9,2313.4,1.56816253]
[1750687238441,0.55,2313.7,2313.3,1.56816253]
[1750687238786,0.55,2313.7,2312.7,2.3522438]
[1750687238943,1.0941,2313.6,2312.8,2.3522438]
[1750687239146,0.55,2313.5,2312.7,2.3522438]
[1750687239369,0.55,2313.3,2312.2,2.3522438]
[1750687239570,0.55,2313.3,2312.1,2.3522438]
[1750687239772,0.97409554,2313.3,2311.9,2.3522438]
[1750687239969,0.55,2313.1,2312.0,2.3522438]
[1750687240374,0.55,2313.1,2311.9,2.3522438]
[1750687240574,0.25963955,2313.2,2312.0,2.3522438]
[1750687240773,0.25963955,2313.2,2312.5,2.3522438]
[1750687241176,0.25963955,2313.2,2312.4,12.3522438]
[1750687241363,0.25963955,2313.2,2312.3,2.3522438]
[1750687241564,0.25963955,2313.2,2312.1,10.0]
[1750687241565,0.55,2312.9,2311.0,12.48090012]
[1750687241796,0.55,2312.9,2310.9,0.5]
[1750687241797,4.32429772,2312.6,2310.6,9.98472009]
[1750687241955,0.55,2312.7,2310.5,0.5]
[1750687241956,4.87453132,2312.4,2310.5,0.5]
[1750687242290,4.87453132,2312.4,2309.8,4.16030004]
[1750687242291,4.32578713,2311.8,2309.8,4.16030004]
[1750687242495,16.01594034,2312.3,2309.4,4.16030004]
[1750687242496,0.55,2311.4,2309.4,4.16030004]
[1750687242795,0.55,2311.0,2309.4,0.5]
[1750687243008,24.46682,2310.9,2309.7,0.5]
[1750687243291,24.46682,2310.9,2309.4,0.5]
[1750687243292,0.55,2310.8,2309.4,0.5]
[1750687243495,0.55,2310.8,2309.3,0.2440599]
[1750687243695,11.03798476,2310.9,2309.3,0.2440599]
[1750687243696,0.55,2310.6,2309.3,0.2440599]
[1750687244001,1.6408,2310.1,2309.3,0.2440599]
[1750687244335,0.55,2309.8,2308.0,0.5]
[1750687244610,0.55,2309.6,2308.3,0.5]
[1750687244775,0.55,2309.6,2308.1,0.5]
[1750687244976,24.259,2309.7,2308.5,0.5]
[1750687245176,24.259,2309.7,2307.9,4.16030004]
[1750687245177,0.55,2309.4,2308.3,0.5]
[1750687245411,1.5691,2309.5,2308.4,0.5]
[1750687245596,1.5691,2309.5,2308.8,0.5]
[1750687245797,1.5691,2309.5,2308.4,0.5]
[1750687245981,1.5691,2309.5,2309.0,0.5]
[1750687246372,1.5691,2309.5,2308.1,14.16030004]
[1750687246373,1.5691,2309.5,2308.8,0.5]
[1750687246577,1.5691,2309.5,2309.0,0.5]
[1750687246991,1.5691,2309.5,2309.1,0.5]
[1750687247193,1.5691,2309.5,2309.2,0.97193285]
[1750687247413,1.5691,2309.5,2309.1,0.5]
[1750687247591,1.5691,2309.5,2309.2,0.97200576]
[1750687247921,0.55,2309.4,2308.5,0.5]
[1750687248078,1.6433,2309.3,2307.9,0.97242403]
[1750687248275,0.55,2309.2,2307.8,0.6332022]
[1750687248522,13.868,2309.1,2308.3,0.5]
[1750687248705,10.397,2309.7,2308.9,0.5]
[1750687248880,10.397,2309.7,2309.3,0.5]
[1750687249283,10.401,2310.4,2309.5,0.5]
[1750687249620,10.401,2310.9,2309.9,0.5]
[1750687249819,10.401,2310.8,2309.9,0.5]
[1750687250121,10.401,2310.7,2309.6,0.5]
[1750687250421,10.401,2310.7,2309.1,1.5558]
[1750687250422,10.403,2310.6,2309.7,1.46778118]
[1750687250593,5.408,2311.9,2309.3,1.46757349]
[1750687250594,11.4433,2310.5,2309.3,1.46757349]
[1750687250798,0.55,2310.3,2309.3,0.45]
[1750687250998,0.55,2310.3,2308.6,0.96816699]
[1750687251202,4.32878816,2310.2,2308.7,0.96816699]
[1750687251400,24.274,2310.4,2307.8,0.1332022]
[1750687251401,0.55,2309.9,2307.8,0.1332022]
[1750687251706,0.55,2309.7,2308.0,0.45]
[1750687251905,0.55,2309.7,2307.8,0.1332022]
[1750687251906,0.55,2309.7,2307.9,0.96844057]
[1750687252107,0.55,2309.7,2307.8,0.5832022]
[1750687252108,0.55,2309.7,2308.0,0.45]
[1750687252324,15.3876,2309.6,2307.8,0.5832022]
[1750687252618,0.55,2309.0,2307.8,0.1332022]
[1750687252923,1.5166,2309.1,2307.8,0.1332022]
[1750687252924,0.55,2308.8,2307.8,0.1332022]
[1750687253121,0.55,2308.6,2307.8,0.1332022]
[1750687254427,0.4261938,2308.7,2306.0,0.3788815]
[1750687254428,0.55,2307.7,2306.0,0.3788815]
[1750687254739,0.55,2307.5,2305.7,1.577]
[1750687254920,0.55,2307.5,2305.2,1.5173]
[1750687255234,2.10911655,2308.2,2305.2,1.5173]
[1750687255235,0.55,2307.3,2306.6,0.45]
[1750687255384,1.5804,2307.4,2306.3,0.45]
[1750687255827,1.5804,2307.4,2306.5,0.45]
[1750687255828,0.55,2307.3,2306.5,0.45]
[1750687256029,0.55,2307.3,2305.2,1.5173]
[1750687256191,0.55,2307.3,2306.3,0.45]
[1750687256925,0.55,2307.3,2306.4,0.45]
[1750687257107,1.5804,2307.4,2306.6,0.45]
[1750687257488,1.5804,2307.4,2306.3,0.45]
[1750687257722,0.55,2307.3,2306.3,0.45]
[1750687257921,0.55,2307.3,2305.2,1.5173]
[1750687258094,0.55,2307.3,2306.3,0.45]
[1750687258495,0.55,2307.3,2305.7,0.45]
[1750687258713,1.5804,2307.4,2306.1,0.45]
[1750687259024,1.5804,2307.4,2306.7,0.45]
[1750687259795,1.5804,2307.4,2306.9,0.45]
[1750687260004,1.5804,2307.4,2306.7,0.45]
[1750687260304,1.5804,2307.4,2305.2,5.85528783]
[1750687260305,10.406,2308.2,2307.5,0.45]
[1750687260499,10.406,2308.2,2307.4,0.45]
[1750687260699,10.406,2308.2,2306.3,1.6008]
[1750687260700,10.406,2308.2,2307.5,0.45]
[1750687261128,1.6262,2309.0,2308.2,0.45]
[1750687261350,10.415,2309.3,2309.2,0.45]
[1750687261641,10.415,2309.3,2309.0,0.45]
[1750687261842,10.415,2309.3,2309.2,0.45]
[1750687262052,1.5795,2310.3,2309.2,0.45]
[1750687262216,11.9945,2310.3,2309.6,0.45]
[1750687262419,11.9945,2310.3,2308.4,1.5719]
[1750687262420,10.415,2310.3,2310.2,0.45]
[1750687262623,10.415,2311.2,2310.9,0.45]
[1750687263147,1.301696,2312.4,2309.5,1.6442]
[1750687263148,1.6152,2313.0,2311.3,0.45]
[1750687263308,10.6363,2312.8,2311.3,0.45]
[1750687263508,10.6363,2312.8,2311.3,10.45]
[1750687263708,10.6363,2312.8,2312.4,0.45]
[1750687263709,10.415,2312.8,2312.4,0.45]
[1750687263954,10.415,2312.8,2312.6,0.45]
[1750687264242,10.415,2312.8,2311.0,1.5804]
[1750687264243,10.415,2312.8,2312.2,0.45]
[1750687264449,10.415,2312.8,2312.5,0.45]
[1750687264669,10.415,2312.8,2312.7,0.45]
[1750687264811,10.415,2312.8,2311.0,1.5804]
[1750687264812,11.4565,2312.8,2312.1,0.45]
[1750687265012,11.4565,2312.8,2312.4,0.45]
[1750687265013,10.415,2312.8,2312.4,0.45]
[1750687265434,10.415,2312.8,2311.0,5.90738878]
[1750687265435,10.415,2312.8,2312.1,0.45]
[1750687265750,5.85671104,2312.7,2311.4,0.45]
[1750687265966,0.55,2312.6,2310.4,1.6554]
[1750687266314,0.55,2312.6,2311.4,0.45]
[1750687266509,0.55,2312.6,2311.2,0.45]
[1750687266749,0.55,2312.6,2311.5,0.45]
[1750687267356,0.55,2312.6,2311.8,0.45]
[1750687267565,1.5327,2312.7,2312.4,0.45]
[1750687267873,1.5327,2312.7,2311.8,0.45]
[1750687268169,1.5327,2312.7,2311.5,0.45]
[1750687268363,4.87417822,2312.6,2311.1,0.45]
[1750687268677,4.87417822,2312.6,2309.5,4.32980924]
[1750687268678,0.55,2312.1,2310.1,0.45]
[1750687268814,10.415,2312.8,2309.2,1.6373]
[1750687268815,1.6477,2310.9,2309.2,1.6373]
[1750687269014,0.55,2310.7,2309.4,0.45]
[1750687269244,0.55,2310.7,2308.4,2.939324]
[1750687269245,0.55,2310.2,2309.0,0.45]
[1750687269460,0.55,2310.5,2308.6,0.45]
[1750687269643,0.55,2309.6,2308.4,0.45]
[1750687269851,0.55,2308.8,2307.9,0.45]
[1750687270066,0.55,2308.6,2307.4,0.45]
[1750687270268,0.55,2308.6,2307.1,1.5346]
[1750687270269,0.55,2308.4,2307.6,0.45]
[1750687270564,0.55,2308.1,2307.2,0.45]
[1750687270973,0.55,2308.1,2306.5,1.6465]
[1750687270974,0.55,2308.1,2307.4,0.45]
[1750687271266,1.6203,2308.2,2306.9,0.45]
[1750687271423,4.33295119,2307.9,2306.9,0.45]
[1750687271629,0.43329512,2307.8,2306.9,0.45]
[1750687271857,0.55,2308.0,2306.9,0.45]
[1750687272169,0.55,2307.8,2306.9,0.45]
[1750687272327,14.44638032,2307.7,2306.6,0.45]
[1750687272530,0.55,2307.5,2306.8,0.45]
[1750687272731,0.55,2307.5,2306.6,0.45]
[1750687272963,0.36538032,2307.5,2307.2,0.45]
[1750687273167,0.36538032,2307.4,2307.2,0.45]
[1750687275532,10.77838032,2307.4,2307.0,0.45]
[1750687275740,10.77838032,2307.4,2307.3,0.45]
[1750687275932,10.77838032,2307.4,2306.5,0.45]
[1750687276164,10.77838032,2307.4,2307.0,0.45]
[1750687276388,0.55,2307.3,2306.8,0.45]
[1750687276535,0.55,2307.3,2306.9,0.45]
[1750687276737,0.55,2307.3,2306.5,0.45]
[1750687277190,0.55,2307.3,2306.4,0.45]
[1750687277491,0.55,2307.1,2306.6,0.45]
[1750687277647,0.55,2307.1,2306.4,0.45]
[1750687277648,13.981,2307.1,2306.4,0.45]
[1750687277847,13.981,2307.1,2306.6,0.45]
[1750687278089,0.36505232,2307.0,2306.5,0.45]
[1750687278396,0.36505232,2307.0,2306.2,0.45]
[1750687278559,1.91294136,2307.0,2306.6,0.45]
[1750687278762,0.36505232,2307.0,2306.2,0.45]
[1750687278962,0.36505232,2307.0,2306.8,0.45]
[1750687280471,0.36505232,2307.0,2306.9,0.45]
[1750687281117,0.36505232,2307.0,2306.9,2.0466]
[1750687281296,0.36505232,2307.0,2306.9,0.45]
[1750687282312,10.417,2308.6,2308.0,0.45]
[1750687282627,0.3001302,2308.5,2307.7,0.45]
[1750687282828,0.3001302,2308.5,2307.5,0.45]
[1750687283036,0.3001302,2308.5,2307.4,0.45]
[1750687283037,13.266,2308.4,2307.4,0.45]
[1750687283323,0.55,2308.2,2307.4,0.45]
[1750687283520,0.8501266,2308.2,2307.6,0.45]
[1750687283721,0.3001266,2308.2,2307.6,0.45]
[1750687283890,0.3001266,2308.2,2307.9,0.45]
[1750687284724,0.3001266,2308.2,2307.7,0.45]
[1750687285109,0.3001266,2308.2,2307.5,0.45]
[1750687285285,0.55,2308.0,2307.0,0.45]
[1750687285485,0.55,2308.0,2307.3,0.45]
[1750687285682,0.55,2308.0,2307.1,0.45]
[1750687286623,0.55,2308.0,2306.8,0.45]
[1750687286822,2.1006,2307.5,2306.5,0.45]
[1750687287034,0.55,2307.2,2306.1,0.45]
[1750687287207,0.55,2307.2,2305.4,1.5817]
[1750687287535,0.55,2307.3,2306.5,0.45]
[1750687287736,4.33428721,2307.2,2306.1,0.45]
[1750687287943,0.48842872,2307.1,2306.1,0.45]
[1750687288240,0.55,2306.8,2305.6,0.45]
[1750687288450,5.96605381,2306.9,2304.9,0.2845762]
[1750687288451,0.55,2306.5,2304.9,0.2845762]
[1750687288736,4.33502861,2306.8,2305.7,0.45]
[1750687288896,13.639,2306.7,2306.0,0.45]
[1750687289101,13.068,2306.6,2306.0,0.45]
[1750687289327,25.0704,2307.4,2306.9,0.45]
[1750687289528,23.482,2307.4,2306.5,0.45]
[1750687289726,23.482,2307.4,2305.9,11.6082]
[1750687289727,23.482,2307.4,2306.3,0.45]
[1750687289910,10.418,2307.4,2306.6,0.45]
[1750687290101,10.418,2307.4,2307.3,0.45]
[1750687293842,10.418,2307.4,2306.5,1.6185]
[1750687294135,10.418,2307.4,2307.3,0.45]
[1750687294564,10.419,2308.3,2307.9,0.45]
[1750687294729,10.419,2308.3,2308.1,0.45]
[1750687294932,0.22971112,2308.2,2308.1,0.45]
[1750687296157,10.419,2308.3,2308.1,0.45]
[1750687296835,10.419,2308.3,2307.9,0.45]
[1750687297039,10.419,2308.3,2308.2,0.45]
[1750687298373,10.418,2309.2,2308.9,0.45]
[1750687298892,10.418,2309.2,2308.1,0.45]
[1750687299190,0.55,2309.1,2308.2,0.45]
[1750687299337,0.55,2308.9,2308.6,0.45]
[1750687299865,1.5036,2308.8,2307.5,1.5572]
[1750687300071,0.55,2308.7,2307.4,0.45]
[1750687300308,0.55,2308.6,2307.4,0.45]
[1750687300618,4.88171679,2308.6,2307.4,0.45]
[1750687300822,0.48817168,2308.5,2307.6,0.45]
[1750687300968,12.715,2308.5,2307.9,0.45]
[1750687301169,13.14303226,2308.5,2307.9,0.45]
[1750687301706,13.232,2308.4,2307.8,0.45]
[1750687301914,1.5036,2308.8,2307.0,1.5796]
[1750687301915,1.5036,2308.8,2308.0,0.45]
[1750687302221,0.55,2308.7,2308.0,0.45]
[1750687302398,0.55,2308.5,2308.0,0.45]
[1750687302607,1.321,2308.4,2308.0,0.45]
[1750687302801,1.321,2308.4,2306.2,1.605702]
[1750687302802,0.55,2308.3,2306.2,1.605702]
[1750687303107,1.321,2308.4,2306.6,0.45]
[1750687303108,0.55,2307.8,2306.6,0.45]
[1750687303307,4.33301178,2307.9,2306.8,0.45]
[1750687303308,23.53530118,2307.7,2306.8,0.45]
[1750687303807,0.55,2307.6,2306.6,0.45]
[1750687303977,10.418,2307.7,2306.8,0.45]
[1750687304180,10.418,2307.7,2307.1,0.45]
[1750687304371,10.418,2307.7,2307.3,0.45]
[1750687304707,0.55,2307.5,2306.8,0.45]
[1750687305005,12.7207,2307.7,2306.8,0.45]
[1750687305006,12.58,2307.4,2306.8,0.45]
[1750687305189,12.58,2307.4,2307.1,0.45]
[1750687305506,10.418,2307.7,2307.6,0.45]
[1750687306189,10.419,2308.7,2308.3,0.45]
[1750687306365,10.419,2308.7,2308.6,0.45]
[1750687306562,10.419,2308.7,2308.2,0.45]
[1750687306770,10.419,2308.7,2307.5,0.45]
[1750687306771,1.6281,2308.6,2307.5,0.45]
[1750687306995,12.527,2308.5,2307.5,0.45]
[1750687307327,0.55,2308.4,2307.2,0.45]
[1750687307528,0.55,2308.4,2307.6,0.45]
[1750687307687,0.55,2308.2,2307.6,0.45]
[1750687307890,0.55,2308.2,2306.5,1.604]
[1750687307891,0.55,2308.2,2307.2,0.45]
[1750687308111,0.55,2308.2,2307.6,0.45]
[1750687308311,0.55,2308.2,2307.3,0.45]
[1750687308512,0.55,2308.2,2307.6,0.45]
[1750687308716,1.6293,2309.1,2308.6,0.45]
[1750687309002,22.914,2309.6,2308.7,0.45]
[1750687309205,22.914,2309.5,2308.7,0.45]
[1750687309410,22.914,2309.5,2308.6,0.45]
[1750687309606,2.2914,2309.4,2309.1,0.45]
[1750687309773,22.888,2309.5,2309.3,0.45]
[1750687310383,22.888,2309.5,2309.3,0.44819654]
[1750687310582,10.417,2309.5,2309.3,0.44819654]
[1750687311615,0.005,2309.9,2309.7,0.44819654]
[1750687311818,10.416,2309.8,2309.7,0.44819654]
[1750687312424,10.416,2309.8,2308.7,0.44819654]
[1750687312425,1.6257,2309.7,2308.7,0.44819654]
[1750687312620,0.55,2309.6,2309.0,0.44819654]
[1750687312910,10.416,2309.8,2309.6,0.44819654]
[1750687313475,10.416,2309.8,2309.0,0.44819654]
[1750687313675,22.803,2309.8,2309.5,0.44819654]
[1750687313908,10.416,2309.8,2309.7,0.44819654]
[1750687314674,11.4581,2309.8,2309.7,0.44819654]
[1750687314879,0.55,2309.7,2309.0,0.44819654]
[1750687315105,0.55,2309.7,2308.3,1.5693]
[1750687315106,0.55,2309.5,2308.7,0.44540524]
[1750687315493,0.55,2309.7,2308.8,0.44540524]
[1750687315688,0.55,2309.5,2308.8,0.44540524]
[1750687315922,0.55,2309.3,2308.5,0.44540524]
[1750687316126,13.0907,2309.8,2308.8,0.44540524]
[1750687316311,12.87,2309.7,2309.0,0.44540524]
[1750687316504,12.87,2309.7,2308.5,0.44540524]
[1750687316812,0.55,2309.5,2308.5,0.44540524]
[1750687317019,0.55,2309.3,2308.5,0.44540524]
[1750687317223,0.55,2309.3,2308.8,0.44540524]
[1750687317381,12.301,2309.2,2308.8,0.44540524]
[1750687317584,0.55,2309.3,2308.8,0.44540524]
[1750687317894,12.283,2309.2,2308.8,0.44540524]
[1750687318081,12.283,2309.2,2307.6,1.5693]
[1750687318082,0.55,2309.0,2308.5,0.44540524]
[1750687318282,1.25127111,2309.1,2308.8,0.44540524]
[1750687318517,12.258,2309.0,2308.8,0.44540524]
[1750687318918,0.55,2309.0,2308.8,0.44540524]
[1750687319219,13.8658,2308.9,2308.2,0.44540524]
[1750687319393,1.44158,2308.8,2308.4,0.44540524]
[1750687319605,1.44158,2308.8,2308.2,0.44540524]
[1750687319606,10.414,2308.7,2308.2,0.44540524]
[1750687319910,0.55,2308.6,2308.0,0.44540524]
[1750687320434,10.84214994,2308.7,2306.3,0.166816]
[1750687320435,0.55,2308.0,2307.1,0.44540524]
[1750687320739,1.627,2307.7,2306.3,0.166816]
[1750687320923,1.627,2306.8,2304.8,1.5169]
[1750687321095,1.627,2306.8,2304.4,4.33948055]
[1750687321296,0.55,2306.7,2305.4,1.5137]
[1750687321496,0.23005448,2306.6,2306.2,10.0]
[1750687321720,0.23005448,2306.6,2306.3,1.5137]
[1750687322156,2.51105993,2306.6,2305.8,1.5137]
[1750687322358,2.51105993,2306.6,2304.8,1.5137]
[1750687322718,12.155,2306.5,2304.8,1.5137]
[1750687323052,12.38540138,2306.5,2304.8,1.5137]
[1750687323356,12.697,2306.4,2304.8,1.5137]
[1750687323657,1.34774014,2306.3,2304.8,1.5137]
[1750687323844,10.416,2306.2,2304.9,1.6384]
[1750687324042,10.416,2306.2,2305.0,14.33822352]
[1750687324247,10.64674477,2306.2,2305.3,1.6384]
[1750687324556,0.23108998,2306.1,2305.3,1.6384]
[1750687325133,10.419,2306.0,2305.3,1.6384]
[1750687325331,0.23143175,2305.9,2305.3,1.6384]
[1750687326321,0.55,2305.8,2304.1,1.6384]
[1750687326523,1.77943175,2305.9,2304.1,1.6384]